Cogmind - Beta 16 @@@ ROGUE MODE // 2025.11.21 @ 18:54:41 Player: C0-2MO Result: Destroyed by as-06741 with Assembled Rifle Performance ------------- Evolutions (0) 0 Regions Visited (2) 400 Robots Destroyed (15) 75 Value Destroyed (218) 218 Prototype IDs (2) 40 Alien Tech Used (0) 0 Bonus (95) 95 TOTAL SCORE: 828 Bonus ------- Follower Combat Kills 95 Cogmind --------- Core Integrity 0/250 Matter 256/300 Energy 99/100 System Corruption 3% Temperature Cool (0) Movement Core (50) Location -10/Mines Parts ------- > --- POWER (1) -------- (None) > --- PROPULSION (2) --- (None) > --- UTILITY (2) ------ (None) > --- WEAPON (2) ------- (None) > --- INVENTORY (5) ---- Aluminum Leg Aluminum Leg Improved Heat Sink Assault Rifle Hammer Peak State ------------ > --- POWER ------------ Light Nuclear Core > --- PROPULSION ------- Aluminum Leg Aluminum Leg > --- UTILITY ---------- Small Storage Unit Seismic Detector > --- WEAPON ----------- Assault Rifle Assault Rifle > --- INVENTORY -------- Light Ion Engine Aluminum Leg Aluminum Leg Improved Heat Sink Targeting Computer Assault Rifle Grenade Launcher Hammer [Rating: 10] Favorites ----------- Power Light Ion Engine Engine Light Ion Engine Power Core Light Nuclear Core Propulsion Aluminum Leg Leg Aluminum Leg Utility Small Storage Unit Device Seismic Detector Storage Small Storage Unit Weapon Assault Rifle Energy Gun EM Pulse Gun Ballistic Gun Assault Rifle Launcher Grenade Launcher Build | -11 -10 -10 ------- Run | Yrd Mat Min Slots Evolved . | . . . Power . | . . . Propulsion . | . . . Utility . | . . . Weapon . | . . . Parts Attached 13 | 7 3 3 Power 2 | 1 . 1 Engine 1 | 1 . . Core 1 | . . 1 Reactor . | . . . Propulsion 4 | 2 1 1 Treads . | . . . Leg 4 | 2 1 1 Wheel . | . . . Hover . | . . . Flight . | . . . Utility 2 | 2 . . Device 1 | 1 . . Storage 1 | 1 . . Processor . | . . . Hackware . | . . . Protection . | . . . Artifact . | . . . Weapon 5 | 2 2 1 Energy Gun 1 | 1 . . Energy Cannon . | . . . Ballistic Gun 3 | 1 1 1 Ballistic Cannon . | . . . Launcher 1 | . 1 . Special Weapon . | . . . Impact Weapon . | . . . Slashing Weapon . | . . . Piercing Weapon . | . . . Special Melee Weapon . | . . . Unidentified Prototypes . | . . . Parts Lost 4 | . . 4 Power 1 | . . 1 Propulsion 1 | . . 1 Utility . | . . . Weapon 2 | . . 2 Highest Loss Streak 4 | . . 4 To Critical Strikes . | . . . Average Backups 5 | . 4 7 Power . | . 1 1 Propulsion 1 | . . 2 Utility . | . . 1 Weapon 2 | . 2 3 Tool/Special . | . . . Unused Backups 7 | . . 7 Power 1 | . . 1 Propulsion 2 | . . 2 Utility 2 | . . 2 Weapon 2 | . . 2 Tool/Special . | . . . Average Slot Usage (%) 100 | . 100 100 Engine 12 | . 14 9 Core 2 | . . 4 Leg 28 | . 28 28 Device 14 | . 14 14 Storage 14 | . 14 14 Energy Gun 7 | . 12 . Ballistic Gun 20 | . 15 27 Peak Build Rating 10 | 7 7 10 Average Rating 7 | 4 7 8 On Entrance 4 | . 7 7 Avg Prop Armor Cover (%) . | . . . Naked Turns 1 | . . 1 Heaviest Build 16 | 13 14 16 Greatest Support 20 | 20 20 20 Greatest Overweight (x) . | . . . Average Overweight (x) . | . . . Largest Inventory Capacity 8 | 8 8 8 Average Capacity 7 | 6 8 7 Most Carried 8 | 1 8 8 Average Carried 5 | . 4 7 Final Capacity 8 | 8 8 5 Final Carried 8 | 1 8 5 Class Distribution -------------------- 100% | Mutant Dominant Class ---------------- Mutant | -10/Materials Mutant | -10/Mines Resources | -11 -10 -10 ----------- Run | Yrd Mat Min Matter Collected 525 | 201 184 140 Remotely . | . . . Salvage Created 308 | 13 170 125 Parts 37 | 4 23 10 Haulers Intercepted 1 | . 1 . Recyclers Shooed 1 | . . 1 Parts Field Recycled . | . . . Retrieved Matter . | . . . Parts Self-Destructed . | . . . Prevented . | . . . Parts Restored . | . . . Kills | -11 -10 -10 ------- Run | Yrd Mat Min Combat Hostiles Destroyed 14 | . 9 5 Guns 6 | . 3 3 AOE 8 | . 6 2 Classes Destroyed 6 | 1 3 2 Worker 1 | . 1 . Tunneler 2 | 1 . 1 Hauler 1 | . 1 . Swarmer 9 | . 9 . Grunt 2 | . . 2 Assembled 3 | . . 3 Best Kill Streak 7 | 1 7 4 Combat Bots Only 6 | . 6 3 Max Kills in Single Turn 4 | 1 4 1 Gunslinging . | . . . Exploded 3 | . 3 1 Melee . | . . . Uniques/NPCs Destroyed . | . . . Combat | -11 -10 -10 -------- Run | Yrd Mat Min Hostile Shots Fired 92 | . 28 64 Missed 31 | . 14 17 Hits 61 | . 14 47 Melee 4 | . . 4 Projectile 57 | . 14 43 Damage Taken 897 | . 138 759 Core 255 | . 16 239 Absorbed by Shields . | . . . Core Remaining (%) 100 | 100 . . Volleys Fired 40 | 2 18 20 Largest 2 | 2 2 2 Hottest 60 | 60 60 40 Shots Fired 71 | 4 33 34 Gun 62 | 4 30 28 Cannon . | . . . Launcher 9 | . 3 6 Special . | . . . Kinetic 45 | 2 15 28 Thermal . | . . . Explosive 9 | . 3 6 Electromagnetic 17 | 2 15 . Robot Hit Streak 8 | 1 8 7 Robot Miss Streak 3 | 2 3 2 Penetration Max . | . . . Secondary Targets . | . . . Shots Hit Robots 45 | 1 21 23 Core Hits 41 | 1 18 22 Critical Kills . | . . . Critical Parts Destroyed . | . . . Critical Strikes 1 | . 1 . Corrupt 1 | . 1 . Melee Attacks . | . . . Impact . | . . . Slashing . | . . . Piercing . | . . . Sneak Attacks . | . . . Combat Hostiles . | . . . Follow-up Attacks . | . . . Damage Inflicted 1224 | 15 562 647 Guns 513 | 15 249 249 Cannons . | . . . Explosions 684 | . 299 385 Melee . | . . . Ramming 27 | . 14 13 Kinetic 400 | . 151 249 Thermal . | . . . Explosive 684 | . 299 385 Electromagnetic 113 | 15 98 . Impact . | . . . Slashing . | . . . Piercing . | . . . Highest Corruption 3 | . 3 3 Average Corruption 2 | . 2 3 Corruption Purged . | . . . Corruption Blocked . | . . . Effects 13 | . 4 9 Message Errors 1 | . . 1 Matter Fused 2 | . 1 1 Heat Flow Errors 2 | . 1 1 Energy Discharges 1 | . . 1 Data Loss (minor) 5 | . 1 4 Data Loss (major) 2 | . 1 1 Overload Shots . | . . . Overflow Damage 1 | . . 1 Projectiles . | . . . Explosions 1 | . . 1 Melee . | . . . Knockbacks . | . . . Impact . | . . . Kinetic . | . . . Secondary . | . . . Self-Inflicted Damage 90 | . 18 72 Shots 3 | . 1 2 Rammed . | . . . Targets Rammed 7 | . 3 4 Kicked 7 | . 3 4 Crushed . | . . . Highest Temperature 199 | . 89 199 Average Temperature 56 | . 53 57 Received Heat Transfer 150 | . . 150 Siege Activations . | . . . Martial Activations . | . . . Shielding Activations . | . . . Robots Disrupted . | . . . Combat Hostiles . | . . . Robots Corrupted . | . . . Combat Hostiles . | . . . Parts Fried . | . . . Impact Corruptions . | . . . Robots Melted . | . . . Combat Hostiles . | . . . Parts Melted . | . . . Heat Transferred . | . . . Parts Sabotaged . | . . . Parts Stolen . | . . . Parts Stripped . | . . . Power Chain Reactions . | . . . Alert | -11 -10 -10 ------- Run | Yrd Mat Min Maximum Alert Level 1 | . 1 . Low Security (%) 89 | 100 81 100 Level 1 10 | . 18 . Level 2 . | . . . Level 3 . | . . . Level 4 . | . . . Level 5 . | . . . High Security . | . . . Max Security . | . . . Peak Influence 250 | 5 250 87 Initial 57 | . . 57 Average 71 | . 109 25 Influence Increases 573 | 5 380 188 Destroy 0b10 Robot/C 280 | . 180 100 Destroy 0b10 Robot/NC 20 | 5 10 5 Destroy Leader 62 | . 32 30 Allied During Kill 8 | . . 8 Successful Hack 23 | . 23 . Select Force Hacks 30 | . 30 . Disable Machine 45 | . 30 15 Destroy Structure 60 | . 30 30 Lose Combat Pursuer 45 | . 45 . Influence Decreases 546 | 5 232 309 Entered New Map 91 | . . 91 Time Decay 388 | 5 232 151 Lost Part 40 | . . 40 Lost Ally 27 | . . 27 Squads Dispatched 2 | . 2 . Investigation 2 | . 2 . Extermination . | . . . Reinforcement . | . . . Assault . | . . . Garrison . | . . . Intercept . | . . . Searches Triggered . | . . . Construction Impeded . | . . . Haulers Reinforced . | . . . Active Scanning Responses . | . . . Cargo Convoy Interrupts . | . . . Stealth | -11 -10 -10 --------- Run | Yrd Mat Min Distress Signals . | . . . Communications Jammed . | . . . Distress Signals . | . . . Times Spotted 42 | . 18 24 Peak Tracking Total 16 | . 9 16 Tactical Retreats 1 | . 1 . Traps | -11 -10 -10 ------- Run | Yrd Mat Min Traps Triggered 4 | . 4 . Indirectly . | . . . Trap Hack Attempts . | . . . Triggered . | . . . Disarmed . | . . . Reprogrammed . | . . . Reused . | . . . Traps Extracted . | . . . Installed . | . . . Triggered . | . . . Machines | -11 -10 -10 ---------- Run | Yrd Mat Min Machines Disabled 3 | . 2 1 Max in Single Turn 1 | . 1 1 Machines Repaired . | . . . Machines Dismantled . | . . . Machines Sabotaged . | . . . Overloaded Fab Kills . | . . . Hacking | -11 -10 -10 --------- Run | Yrd Mat Min Machines Accessed 6 | . 6 . Terminals 5 | . 5 . Fabricators . | . . . Repair Stations . | . . . Recycling Units 1 | . 1 . Scanalyzers . | . . . Garrison Access . | . . . Total Hacks 25 | . 25 . Successful 12 | . 12 . Failed 12 | . 12 . Catastrophic 2 | . 2 . Database Lockouts 1 | . 1 . Manual 22 | . 22 . Terminals 24 | . 24 . Fabricators . | . . . Repair Stations . | . . . Recycling Units 1 | . 1 . Scanalyzers . | . . . Garrison Access . | . . . Terminal Hacks 3 | . 3 . Robot Analysis 1 | . 1 . Prototype ID Bank 1 | . 1 . Terminal Index 1 | . 1 . Fabricator Hacks . | . . . Repair Station Hacks . | . . . Recycling Unit Hacks . | . . . Scanalyzer . | . . . Garrison Access Hacks . | . . . Unauthorized Hacks 9 | . 9 . Terminals 8 | . 8 . Botnet 2 | . 2 . Operators 1 | . 1 . Skim 5 | . 5 . Fabricators . | . . . Repair Stations . | . . . Recycling Units 1 | . 1 . Tunnel 1 | . 1 . Scanalyzers . | . . . Garrison Access . | . . . Data Cores Recovered . | . . . Used . | . . . Hacking Detections 4 | . 4 . Full Trace Events . | . . . Feedback Events . | . . . Feedback Blocked . | . . . Robot Schematics Acquired . | . . . Robots Built . | . . . Authchips . | . . . Time . | . . . Total Robot Build Rating . | . . . Part Schematics Acquired . | . . . Parts Built . | . . . Authchips . | . . . Time . | . . . Total Part Build Rating . | . . . Part Studies Acquired . | . . . Parts Repaired . | . . . Time . | . . . Parts Recycled . | . . . Recycled Matter . | . . . Retrieved Matter . | . . . Retrieved Components . | . . . Parts Scanalyzed . | . . . Part Schematics Acquired . | . . . Parts Damaged . | . . . Bothacking | -11 -10 -10 ------------ Run | Yrd Mat Min Used RIF Installer . | . . . Robots Hacked . | . . . Non-combat . | . . . Combat . | . . . Robot Hacks Applied . | . . . Relay Couplers Released . | . . . Fabnet Peak Effective % . | . . . Robots Rewired . | . . . Allies Hacked . | . . . Hacks Repelled . | . . . Allies | -11 -10 -10 -------- Run | Yrd Mat Min Total Allies 3 | . . 3 Largest Group 3 | . . 3 Highest-Rated Group 40 | . . 40 Highest-Rated Ally 16 | . . 16 Total Orders . | . . . Ally Attacks 21 | . . 21 Total Damage 231 | . . 231 Kills 4 | . . 4 Allies Corrupted . | . . . Allies Melted . | . . . Intel | -11 -10 -10 ------- Run | Yrd Mat Min Active Infowar (turns) 1128 | 23 668 437 Seismic 1128 | 23 668 437 Robot Analysis Total 1 | . 1 . Derelict Logs Recovered . | . . . Drone Launches . | . . . Drone Recoveries . | . . . Exploration | -11 -10 -10 ------------- Run | Yrd Mat Min Turns Passed 1175 | 69 668 438 Spaces Moved 847 | 48 497 302 Core 9 | 7 . 2 Treads . | . . . Legs 838 | 41 497 300 Wheels . | . . . Hover . | . . . Flight . | . . . Fastest Speed 50 | 50 120 50 Average Speed 119 | 109 120 119 Slowest Speed 120 | 120 120 120 Overloaded Moves . | . . . Propulsion Burnouts . | . . . Robots Hopped . | . . . Potential Cave-ins . | . . . Cave-ins Triggered . | . . . Exploration Rate (%) 51 | 5 93 55 Regions Visited 2 Branch Regions 1 Pre-discovered Areas 1 | . 1 . Known Exits Taken . | . . . Unknown Exits Taken 2 | 1 1 . Scrap Searched 1 | . . 1 Spaces Dug . | . . . Terrain Destroyed 66 | . 31 35 Melee . | . . . Projectile . | . . . AOE 66 | . 31 35 Terrain Rammed . | . . . Walls Destroyed . | . . . Machines Disabled . | . . . Actions | -11 -10 -10 --------- Run | Yrd Mat Min Total 937 | 57 535 345 Wait 14 | . 4 10 Move 845 | 47 496 302 Hop . | . . . Pick Up 10 | 1 8 1 Fast Attach 7 | 7 . . Attach 3 | . 1 2 Detach . | . . . Swap 6 | . 3 3 Drop 5 | . 2 3 Fire 40 | 2 18 20 Melee . | . . . Ram . | . . . Kick 7 | . 3 4 Crush . | . . . Escape Stasis . | . . . Rewire . | . . . Trap . | . . . Miscellaneous . | . . . Route ------- -11/Scrapyard -10/Materials (discovered 6 exits: *Mat x3 / [*Min x2] / *Sub) -10/Mines (discovered 1 exit: *Mat) History --------- Turn | Location | Event 4 | -11/Scrapyard | Discovered new exit (range 16) 70 | -11/Scrapyard | Entered Materials 107 | -10/Materials | Discovered new exit (range 13) 163 | -10/Materials | Discovered new exit (range 12) 318 | -10/Materials | Build established: Mutant 330 | -10/Materials | Discovered new exit (range 9) 373 | -10/Materials | Discovered new exit (range 16) 415 | -10/Materials | Central database locked down 446 | -10/Materials | Discovered new exit (range 16) 461 | -10/Materials | Identified exit to Materials 461 | -10/Materials | Identified exit to Subcaves 499 | -10/Materials | Learned 2 Storage zone layouts 529 | -10/Materials | Learned 8 Materials zone layouts 550 | -10/Materials | Learned Storage emergency access door positions 563 | -10/Materials | Learned 2 Mines zone layouts 585 | -10/Materials | Learned Recycling recycling unit intel 619 | -10/Materials | Learned 2 Storage zone layouts 738 | -10/Materials | Entered Mines 750 | -10/Mines | Assisted by bots powering up and referring to "LRC-V3" 764 | -10/Mines | Met a Derelict bent on vengeance 1141 | -10/Mines | Discovered exit to Materials (range 9) 1142 | -10/Mines | Assembled infested the area 1153 | -10/Mines | Core integrity fell below 50% 1167 | -10/Mines | Core integrity fell below 20% 1175 | -10/Mines | Released all parts (4) 1176 | -10/Mines | Destroyed by as-06741 with Assembled Rifle Last Messages --------------- 01155_ K-01 Serf destroyed. 01157_ T-07 Excavator destroyed. 01158_ Knocked back. 01158_ as-83410 destroyed. 01160_ Destroyed Asb. Hover Unit. 01162_ as-33334 destroyed. 01163_ Grenade Launcher destroyed. 01165_ as-16864 destroyed. 01168_ Trooper 1a destroyed. 01169_ Acquired 33 matter. 01171_ The unstable cave ceiling collapses. 01171_ Assault Rifle destroyed. 01173_ System corrupted: Matter fused (-10). 01174_ Lgt. Nuclear Core destroyed. 01175_ Aluminum Leg destroyed. 01175_ Released Aluminum Leg. 01175_ Released Seismic Detector. 01175_ Released Sml. Storage Unit. 01175_ Released Assault Rifle. 01176_ The unstable cave ceiling collapses. Map ----- +----------------------------------------------------+ | ?????????????????????????????????????????????????? | | ?????????????????????????????????????????????????? | | ?????????????????????????????????????????????????? | | ?????????????????????????????????????????????????? | | ?????????????????????????????????????????????????? | | ?????????????????????????????????????????????????? | | ?????????????????????????????????????????????????? | | ?????????????????????????????????????????????????? | | ?????????????????????????????????????????????????? | | ?????????# #??##????????????????????????????????? | | ????????## #?###????? ?????????????????????????? | | ????????# ### ? ??# ?????????????????????????? | | ???????## ## ###a##???????????????????????? | | ??????## ### a ####????????????????????? | | ?????## #?## a a #????????????????????? | | ?????# ##?## a #????????????????????? | | ?????# ##?##?# aaa ##???????????????????? | | ?????# ####?? #######?????????????? | | ###### ????# ####??????????? | | ## ???## a== ##?????????? | | ??# a ! a #?????????? | | ### ## !a [ ##?????????? | | ##?### = ###### #?????? | | ######????## *![# =% " #?????? | | ####??????????# k% !a###=** #?????? | | ????????####??## < @!##?##! ########?##### | | ???????## ##??#### ##???# #????????# # | | ???????# #?????## # ##????# #????????# # | | ???????# #??????#?####??????# #???????## | | ???????# ##??####????????????## ##??###### | | ???????## ##### ######????????# ##???# | | ???????## ## #####????# #????#=#### | | ??????## #????# #????#!#??## ## | | ??????# ### ### #????# #????#*#???####? | | ??????# ####?##### ###### #????#%#???????? | | ??????# ####???????# % #????#=#???????? | | ??????## ##??????????# ##############=#???????? | | ???????## ##???????????# #???????#!! [#???????? | | ????????####????????????# #???????#%#### #???????? | | ????????????????????????# #???????#!#??# #???????? | | ????????????????????????# #???????#[#??# #???????? | | ?????????????############ #?????###%#??# ####????? | | ?????????????# #?????# #??# #????? | | ???########### #### ##### #?????# ###??# ## #????? | | ???# == % % #??# #???# #?????# #????# ## ####?? | | ???#[###########??# #??## ####### ######%## #?? | | ???#*#????????????# #??# # ##### #?? | | ####%####?????????# #??# ########## ######???# #?? | | # [=! #?????????# #### #???????## #????????# #?? | | # """#?????????# ## ##???#### ##???????# ### | +----------------------------------------------------+ Best States ------------- Heat Dissipation 25 Energy Generation 14 Energy Capacity 160 Matter Stores 300 Matter Capacity 300 Sight Range 16 Terrain Scan Density 10 Evasion (%) 55 Item Schematics ----------------- None Robot Schematics ------------------ None Fabricated ------------ Nothing Repaired ---------- Nothing Studied --------- None Alien Tech Used ----------------- None Achievements -------------- None Challenges ------------ None Game ------ Seed GaussHackingKit Manual? 0 Play Time 00:10:08 Cumulative 691.7 hours Start 2025.11.21 @ 18:44:51 End 2025.11.21 @ 18:54:41 Sessions 1 Manual Loads 0 Difficulty Rogue Special Mode None Game No. 296 Rogue 296 Adventurer 0 Explorer 0 Win Type - Total 70 Types 36/4/11/5/6/1/1/3/0/3 Lore% 96 Gallery% 89 Achievement% 79 Wizard Run 0 Options --------- Layout 1 ASCII 0 Keyboard 0 Movement Numpad Keybinds 0 Fullscreen 1 Font 24/Smallcaps Map View 50x35 Zoom Use 0% Tactical HUD 1 Map Filters NONE Filters NONE Steam 1 RUN: c48a2b5d-1d84-4d45-b4ce-66f039937695